Workbook

Sheet Лист1
M1: Приложение 1
A3: Информация о численности обучающихся 9, 10-х классов муниципальных общеобразовательных организаций (без учета школ для детей с ОВЗ, частных, ДМиВ, вечерних)
A5: №№ п/п | B5: Наименование районов | C5: 2015-2016 учебный год | G5: 2016-2017 учебный год | K5: 2017-2018 учебный год
C6: Завершили обучение в 9 классе | D6: Продолжили обучение в 10 классе | E6: остались на повторный год обучения | F6: завершили обучение в школе после 9 кл. | G6: Завершили обучение в 9 классе | H6: Продолжили обучение в 10 классе | I6: остались на повторный год обучения (после 9 кл.) | J6: завершили обучение в школе после 9 кл. | K6: Завершили обучение в 9 классе | L6: Продолжили обучение в 10 классе (прогноз) | M6: остались на повторный год обучения (после 9 кл.) | N6: завершили обучение в школе после 9 кл. (прогноз)
A7: 1 | B7: Агрызский | C7: 320 | D7: 112 | E7: 2 | F7: =(C7-(D7+E7))/C7 -> 0.64 | G7: 340 | H7: 144 | I7: 6 | J7: =(G7-(H7+I7))/G7 -> 0.56 | K7: 320 | L7: 119 | M7: 2 | N7: =(K7-(L7+M7))/K7 -> 0.62
A8: 2 | B8: Азнакаевский | C8: 620 | D8: 231 | E8: 0 | F8: =(C8-(D8+E8))/C8 -> 0.63 | G8: 638 | H8: 272 | I8: 11 | J8: =(G8-(H8+I8))/G8 -> 0.56 | K8: 602 | L8: 253 | M8: 6 | N8: =(K8-(L8+M8))/K8 -> 0.57
A9: 3 | B9: Аксубаевский | C9: 375 | D9: 158 | E9: 0 | F9: 0.58 | G9: 368 | H9: 152 | I9: 1 | J9: 0.58 | K9: 352 | L9: 145 | M9: 4 | N9: 0.58
A10: 4 | B10: Актанышский | C10: 361 | D10: 105 | E10: 0 | F10: 0.71 | G10: 347 | H10: 100 | I10: 2 | J10: 0.71 | K10: 347 | L10: 129 | M10: 1 | N10: 0.63
A11: 5 | B11: Алексеевский | C11: 307 | D11: 105 | E11: 0 | F11: 0.66 | G11: 271 | H11: 98 | I11: 1 | J11: 0.63 | K11: 259 | L11: 71 | M11: 4 | N11: 0.71
A12: 6 | B12: Алькеевский | C12: 231 | D12: 91 | E12: 0 | F12: 0.61 | G12: 243 | H12: 101 | I12: 0 | J12: 0.58 | K12: 228 | L12: 79 | M12: 0 | N12: 0.65
A13: 7 | B13: Альметьевскай | C13: 1,859 | D13: 893 | E13: 7 | F13: 0.52 | G13: 1,844 | H13: 948 | I13: 13 | J13: 0.48 | K13: 1,914 | L13: 1,009 | M13: 34 | N13: 0.46
A14: 8 | B14: Апастовский | C14: 221 | D14: 63 | E14: 0 | F14: 0.71 | G14: 213 | H14: 86 | I14: 0 | J14: 0.60 | K14: 168 | L14: 77 | M14: 0 | N14: 0.54
A15: 9 | B15: Арский | C15: 576 | D15: 213 | E15: 0 | F15: 0.63 | G15: 604 | H15: 201 | I15: 0 | J15: 0.67 | K15: 542 | L15: 166 | M15: 0 | N15: 0.69
A16: 10 | B16: Атнинский | C16: 151 | D16: 44 | E16: 0 | F16: 0.71 | G16: 141 | H16: 43 | I16: 0 | J16: 0.70 | K16: 113 | L16: 38 | M16: 0 | N16: 0.66
A17: 11 | B17: Бавлинский | C17: 334 | D17: 112 | E17: 4 | F17: 0.65 | G17: 350 | H17: 141 | I17: 2 | J17: 0.59 | K17: 322 | L17: 123 | M17: 3 | N17: 0.61
A18: 12 | B18: Балтасинский | C18: 412 | D18: 229 | E18: 0 | F18: 0.44 | G18: 422 | H18: 211 | I18: 0 | J18: 0.50 | K18: 364 | L18: 181 | M18: 0 | N18: 0.50
A19: 13 | B19: Бугульминский | C19: 937 | D19: 386 | E19: 1 | F19: 0.59 | G19: 929 | H19: 431 | I19: 19 | J19: 0.52 | K19: 968 | L19: 481 | M19: 17 | N19: 0.49
A20: 14 | B20: Буинский | C20: 504 | D20: 178 | E20: 0 | F20: 0.65 | G20: 450 | H20: 196 | I20: 0 | J20: 0.56 | K20: 493 | L20: 215 | M20: 0 | N20: 0.56
A21: 15 | B21: Верхнеуслонский | C21: 144 | D21: 59 | E21: 0 | F21: 0.59 | G21: 201 | H21: 108 | I21: 0 | J21: 0.46 | K21: 174 | L21: 106 | M21: 0 | N21: 0.39
A22: 16 | B22: Высокогорский | C22: 422 | D22: 147 | E22: 1 | F22: 0.65 | G22: 397 | H22: 160 | I22: 2 | J22: 0.59 | K22: 398 | L22: 160 | M22: 0 | N22: 0.60
A23: 17 | B23: Дрожжановский | C23: 345 | D23: 164 | E23: 0 | F23: 0.52 | G23: 312 | H23: 154 | I23: 0 | J23: 0.51 | K23: 294 | L23: 142 | M23: 0 | N23: 0.52
A24: 18 | B24: Елабужский | C24: 725 | D24: 352 | E24: 0 | F24: 0.51 | G24: 758 | H24: 380 | I24: 0 | J24: 0.50 | K24: 724 | L24: 332 | M24: 3 | N24: 0.54
A25: 19 | B25: Заинский | C25: 541 | D25: 191 | E25: 0 | F25: 0.65 | G25: 506 | H25: 180 | I25: 2 | J25: 0.64 | K25: 511 | L25: 183 | M25: 4 | N25: 0.63
A26: 20 | B26: Зеленодольский | C26: 1,223 | D26: 442 | E26: 3 | F26: 0.64 | G26: 1,273 | H26: 513 | I26: 5 | J26: 0.59 | K26: 1,257 | L26: 488 | M26: 3 | N26: 0.61
A27: 21 | B27: Кайбицкий | C27: 163 | D27: 91 | E27: 0 | F27: 0.44 | G27: 163 | H27: 87 | I27: 0 | J27: 0.47 | K27: 170 | L27: 112 | M27: 0 | N27: 0.34
A28: 22 | B28: Камскоустьинский | C28: 178 | D28: 84 | E28: 0 | F28: 0.53 | G28: 170 | H28: 88 | I28: 0 | J28: 0.48 | K28: 140 | L28: 80 | M28: 0 | N28: 0.43
A29: 23 | B29: Кукморский | C29: 621 | D29: 254 | E29: 3 | F29: 0.59 | G29: 537 | H29: 230 | I29: 0 | J29: 0.57 | K29: 543 | L29: 250 | M29: 0 | N29: 0.54
A30: 24 | B30: Лаишевский | C30: 361 | D30: 127 | E30: 6 | F30: 0.63 | G30: 346 | H30: 130 | I30: 6 | J30: 0.61 | K30: 304 | L30: 122 | M30: 3 | N30: 0.59
A31: 25 | B31: Лениногорский | C31: 786 | D31: 300 | E31: 2 | F31: 0.62 | G31: 801 | H31: 318 | I31: 1 | J31: 0.60 | K31: 766 | L31: 345 | M31: 4 | N31: 0.54
A32: 26 | B32: Мамадышский | C32: 539 | D32: 243 | E32: 0 | F32: 0.55 | G32: 479 | H32: 189 | I32: 0 | J32: 0.61 | K32: 434 | L32: 165 | M32: 0 | N32: 0.62
A33: 27 | B33: Менделеевский | C33: 264 | D33: 146 | E33: 5 | F33: 0.43 | G33: 306 | H33: 161 | I33: 3 | J33: 0.46 | K33: 268 | L33: 149 | M33: 5 | N33: 0.43
A34: 28 | B34: Мензелинский | C34: 290 | D34: 90 | E34: 0 | F34: 0.69 | G34: 275 | H34: 99 | I34: 0 | J34: 0.64 | K34: 274 | L34: 128 | M34: 0 | N34: 0.53
A35: 29 | B35: Муслюмовский | C35: 218 | D35: 67 | E35: 1 | F35: 0.69 | G35: 198 | H35: 67 | I35: 1 | J35: 0.66 | K35: 210 | L35: 80 | M35: 0 | N35: 0.62
A36: 30 | B36: Нижнекамский | C36: 2,453 | D36: 1,037 | E36: 93 | F36: 0.54 | G36: 2,439 | H36: 1,110 | I36: 35 | J36: 0.53 | K36: 2,527 | L36: 1,122 | M36: 31 | N36: 0.54
A37: 31 | B37: Новошешминский | C37: 176 | D37: 62 | E37: 2 | F37: 0.64 | G37: 165 | H37: 66 | I37: 0 | J37: 0.60 | K37: 148 | L37: 62 | M37: 2 | N37: 0.57
A38: 32 | B38: Нурлатский | C38: 577 | D38: 276 | E38: 0 | F38: 0.52 | G38: 595 | H38: 298 | I38: 0 | J38: 0.50 | K38: 568 | L38: 264 | M38: 3 | N38: 0.53
A39: 33 | B39: Пестречинский | C39: 281 | D39: 90 | E39: 3 | F39: 0.67 | G39: 274 | H39: 91 | I39: 0 | J39: 0.67 | K39: 255 | L39: 85 | M39: 0 | N39: 0.67
A40: 34 | B40: Рыбнослободский | C40: 254 | D40: 102 | E40: 0 | F40: 0.60 | G40: 272 | H40: 122 | I40: 1 | J40: 0.55 | K40: 248 | L40: 127 | M40: 0 | N40: 0.49
A41: 35 | B41: Сабинский | C41: 360 | D41: 132 | E41: 2 | F41: 0.63 | G41: 348 | H41: 147 | I41: 2 | J41: 0.57 | K41: 370 | L41: 161 | M41: 2 | N41: 0.56
A42: 36 | B42: Сармановский | C42: 367 | D42: 147 | E42: 0 | F42: 0.60 | G42: 335 | H42: 152 | I42: 3 | J42: 0.54 | K42: 401 | L42: 185 | M42: 1 | N42: 0.54
A43: 37 | B43: Спасский | C43: 205 | D43: 62 | E43: 1 | F43: 0.69 | G43: 206 | H43: 79 | I43: 6 | J43: 0.59 | K43: 182 | L43: 56 | M43: 4 | N43: 0.67
A44: 38 | B44: Тетюшский | C44: 258 | D44: 102 | E44: 1 | F44: 0.60 | G44: 238 | H44: 110 | I44: 0 | J44: 0.54 | K44: 226 | L44: 101 | M44: 0 | N44: 0.55
A45: 39 | B45: Тукаевский | C45: 255 | D45: 81 | E45: 0 | F45: 0.68 | G45: 252 | H45: 88 | I45: 0 | J45: 0.65 | K45: 302 | L45: 106 | M45: 7 | N45: 0.63
A46: 40 | B46: Тюлячинский | C46: 176 | D46: 97 | E46: 0 | F46: 0.45 | G46: 163 | H46: 92 | I46: 0 | J46: 0.44 | K46: 149 | L46: 76 | M46: 0 | N46: 0.49
A47: 41 | B47: Черемшанский | C47: 250 | D47: 114 | E47: 6 | F47: 0.52 | G47: 241 | H47: 119 | I47: 2 | J47: 0.50 | K47: 244 | L47: 124 | M47: 6 | N47: 0.47
A48: 42 | B48: Чистопольский | C48: 819 | D48: 314 | E48: 0 | F48: 0.62 | G48: 743 | H48: 363 | I48: 1 | J48: 0.51 | K48: 753 | L48: 348 | M48: 0 | N48: 0.54
A49: 43 | B49: Ютазинский | C49: 196 | D49: 59 | E49: 0 | F49: 0.70 | G49: 204 | H49: 76 | I49: 0 | J49: 0.63 | K49: 196 | L49: 78 | M49: 1 | N49: 0.60
A50: 44 | B50: г. Наб.Челны | C50: 4,041 | D50: 1,679 | E50: 1 | F50: 0.58 | G50: 4,323 | H50: 1,867 | I50: 21 | J50: 0.56 | K50: 4,263 | L50: 1,945 | M50: 79 | N50: 0.53
A51: 45 | B51: г. Казань | C51: 9,032 | D51: 5,207 | E51: 19 | F51: 0.42 | G51: =SUM(G55:G61) -> 9,141 | H51: 5,444 | I51: 30 | J51: 0.40 | K51: =SUM(K55:K61) -> 9,486 | L51: 5,617 | M51: 33 | N51: 0.40
B52: Педколледжи | K52: 33 | L52: 0 | M52: 0
A53: ИТОГО ПО РТ | C53: =SUM(C7:C51) -> 33,728 | D53: =SUM(D7:D51) -> 15,238 | E53: =SUM(E7:E51) -> 163 | F53: 0.54 | G53: 33,821 | H53: =SUM(H7:H51) -> 16,212 | I53: =SUM(I7:I51) -> 176 | J53: 0.52 | K53: 33,810 | L53: 16,385 | M53: 262 | N53: 0.51
A54: Районы г.Казани
A55: 1 | B55: Авиастроительный | C55: 859 | D55: 465 | E55: 3 | F55: 0.5 | G55: 902 | H55: 473 | I55: 4 | J55: 0.47 | K55: 932 | L55: 493 | M55: 2 | N55: 0.47
A56: 2 | B56: Вахитовский | C56: 1,068 | D56: 825 | E56: 1 | F56: 0.2 | G56: 1,043 | H56: 845 | I56: 1 | J56: 0.19 | K56: 1,054 | L56: 853 | M56: 6 | N56: 0.19
A57: 3 | B57: Кировский | C57: 808 | D57: 444 | E57: 0 | F57: 0.5 | G57: 691 | H57: 377 | I57: 2 | J57: 0.45 | K57: 769 | L57: 430 | M57: 6 | N57: 0.43
A58: 4 | B58: Московский | C58: 1,134 | D58: 712 | E58: 1 | F58: 0.4 | G58: 1,194 | H58: 797 | I58: 2 | J58: 0.33 | K58: 1,130 | L58: 742 | M58: 8 | N58: 0.34
A59: 5 | B59: Ново-Савиновский | C59: 1,468 | D59: 905 | E59: 7 | F59: 0.4 | G59: 1,459 | H59: 898 | I59: 11 | J59: 0.38 | K59: 1,598 | L59: 1,019 | M59: 3 | N59: 0.36
A60: 6 | B60: Приволжский | C60: 1,662 | D60: 918 | E60: 2 | F60: 0.4 | G60: 1,740 | H60: 1,020 | I60: 8 | J60: 0.41 | K60: 1,815 | L60: 986 | M60: 7 | N60: 0.45
A61: 7 | B61: Советский | C61: 2,033 | D61: 938 | E61: 5 | F61: 0.5 | G61: 2,112 | H61: 1,034 | I61: 2 | J61: 0.51 | K61: 2,188 | L61: 1,094 | M61: 1 | N61: 0.50

Sheet Лист2
A2: № п/п | B2: Наименование профессиональной
B3: образовательной организации (ресурсного центра) | C3: тыс.руб
A4: 1. | B4: Елабужский политехнический колледж | C4: 27573.2
A5: 2. | B5: Казанский энергетический колледж | C5: 43291.4
A6: 3. | B6: Казанский педагогический колледж | C6: 56065.1
A7: 4. | B7: Мензелинский педагогический колледж | C7: 30708.1
A8: 5. | B8: Камский государственный автомеханический техникум им Л.Б.Васильева | C8: 99996.3
A9: 6. | B9: Техникум нефтехимии и нефтепереработки (г.Нижнекамск) | C9: 68678.7
A10: 7. | B10: Сармановский аграрный колледж | C10: 52750.1
A11: 8. | B11: Лениногорский политехнический колледж | C11: 93791.3
A12: 9. | B12: Арский педагогический колледж | C12: 53445.9
A13: 10. | B13: Казанский авиационно-технический колледж им.П.В.Дементьева | C13: 80028.3
A14: 11. | B14: Казанский автотранспортный техникум им.А.П.Обыденнова | C14: 110898.4
A15: 12. | B15: Лениногорский нефтяной техникум | C15: 50843.6
A16: 13. | B16: Мамадышский профессиональный колледж | C16: 40161.4
A17: 14. | B17: Нижнекамский индустриальный техникум | C17: 34626.4
C18: =SUM(C4:C17) -> 842858.2
A21: № п/п | B21: Наименование профессиональной
B22: образовательной организации (ресурсного центра) | C22: тыс, руб
A23: 15. | B23: Атнинский сельскохозяйственный техникум им.Г.Тукая | C23: 32 039,9
A24: 16. | B24: Заинский политехнический колледж | C24: 34 148,2
A25: 17. | B25: Зеленодольский механический колледж | C25: 49 330,0
A26: 18. | B26: Лаишевский технико-экономический техникум | C26: 26 633,7
A27: 19. | B27: Казанский строительный колледж | C27: 84 268,8
A28: 20. | B28: Казанский техникум информационных технологий и связи | C28: не наши

Sheet Лист3

Sheet Лист4
